bitfinex/quotes_BTCUSD_20250616
["timestamp","ask_amount","ask_price","bid_price","bid_amount"]
[1750093345230,7.09124019,107850.0,107840.0,0.1963935]
[1750093345444,7.09124019,107850.0,107840.0,0.2353535]
[1750093345656,7.05900019,107850.0,107840.0,0.2353535]
[1750093346120,7.09290019,107850.0,107840.0,0.1963935]
[1750093346287,7.10216121,107850.0,107840.0,0.1963935]
[1750093346522,7.15771543,107850.0,107840.0,0.2353535]
[1750093347113,7.15971543,107850.0,107840.0,0.2353535]
[1750093347317,7.21925628,107850.0,107840.0,0.2353535]
[1750093348411,7.55343711,107850.0,107840.0,0.1963935]
[1750093348620,7.70435711,107850.0,107840.0,0.2353935]
[1750093348826,0.54404316,107820.0,107810.0,0.2313]
[1750093349040,6.98852335,107820.0,107810.0,0.43508759]
[1750093349467,7.04749935,107820.0,107810.0,0.43508759]
[1750093349697,6.89657935,107820.0,107810.0,0.39608759]
[1750093349919,7.04749935,107820.0,107810.0,0.43508759]
[1750093350129,7.0752242,107820.0,107810.0,0.39608759]
[1750093350387,7.0752642,107820.0,107810.0,0.43508759]
[1750093350601,7.05053935,107820.0,107810.0,0.43508759]
[1750093351244,7.05353935,107820.0,107810.0,0.43508759]
[1750093351879,7.0812642,107820.0,107810.0,0.43508759]
[1750093352305,7.0812242,107820.0,107810.0,0.43508759]
[1750093352515,7.03769935,107820.0,107810.0,0.43508759]
[1750093352957,7.05269935,107820.0,107810.0,0.43508759]
[1750093354308,7.0804242,107820.0,107810.0,0.43508759]
[1750093354522,7.10772869,107820.0,107810.0,0.43508759]
[1750093354947,7.16726954,107820.0,107810.0,0.43508759]
[1750093355183,7.17375567,107820.0,107810.0,0.43508759]
[1750093355415,7.22375567,107820.0,107810.0,0.43508759]
[1750093356295,7.37916669,107820.0,107810.0,0.43504759]
[1750093356509,7.37916669,107820.0,107810.0,0.39608759]
[1750093356762,7.37916669,107820.0,107810.0,0.43504759]
[1750093357186,7.37916827,107820.0,107810.0,0.43504759]
[1750093357812,7.22824827,107820.0,107810.0,0.43504759]
[1750093358024,7.37920827,107820.0,107810.0,0.43504759]
[1750093358895,7.40703764,107820.0,107810.0,0.43504759]
[1750093359318,7.40703762,107820.0,107810.0,0.43504759]
[1750093359957,7.40703685,107820.0,107810.0,0.23504759]
[1750093362171,7.40703686,107820.0,107810.0,0.23504759]
[1750093362596,7.37007258,107820.0,107810.0,0.23504759]
[1750093364272,7.40695276,107820.0,107810.0,0.19304759]
[1750093364490,7.37007258,107820.0,107810.0,0.19304759]
[1750093364917,7.37007298,107820.0,107810.0,0.1466264]
[1750093365572,7.37007298,107820.0,107810.0,0.10020521]
[1750093365803,7.37007298,107820.0,107810.0,0.05378402]
[1750093366022,7.35138416,107820.0,107810.0,0.05378402]
[1750093366234,7.35138416,107820.0,107810.0,0.00736283]
[1750093366895,7.35138416,107820.0,107810.0,0.00123283]
[1750093367605,7.40693838,107820.0,107810.0,0.00123283]
[1750093367832,7.40693624,107820.0,107810.0,0.00123283]
[1750093368074,7.40693624,107820.0,107790.0,0.22728]
[1750093368075,5.59408101,107800.0,107790.0,0.22728]
[1750093368292,5.71250777,107800.0,107790.0,0.27112]
[1750093368513,5.71250777,107800.0,107790.0,0.34631857]
[1750093368514,5.84128277,107800.0,107790.0,0.34631857]
[1750093368729,5.35032277,107800.0,107790.0,0.34631857]
[1750093368940,5.84128277,107800.0,107790.0,0.34631857]
[1750093369362,5.84228277,107800.0,107790.0,0.35231857]
[1750093370227,5.93843199,107800.0,107790.0,0.27712]
[1750093370439,6.46057691,107800.0,107790.0,0.27712]
[1750093370652,6.4827248,107800.0,107790.0,0.27712]
[1750093371992,6.38657558,107800.0,107790.0,0.27712]
[1750093372673,5.86443066,107800.0,107790.0,0.27712]
[1750093373347,5.86243066,107800.0,107790.0,0.27712]
[1750093374744,5.86243066,107800.0,107790.0,1.00836486]
[1750093374745,0.49649399,107800.0,107790.0,1.00836486]
[1750093374964,0.1065175,107800.0,107790.0,1.01764155]
[1750093375172,0.26675368,107800.0,107790.0,1.01764155]
[1750093375834,0.27602994,107800.0,107790.0,1.01764155]
[1750093376670,0.12506994,107800.0,107790.0,1.01764155]
[1750093376876,0.27602994,107800.0,107790.0,1.01764155]
[1750093377075,0.28530629,107800.0,107790.0,1.01764155]
[1750093377282,0.48011147,107800.0,107790.0,1.00836486]
[1750093377499,0.49303196,107800.0,107790.0,1.00836486]
[1750093377713,0.99662453,107800.0,107790.0,0.23617]
[1750093377922,0.47447961,107800.0,107790.0,0.27513]
[1750093378130,0.99662453,107800.0,107790.0,0.27513]
[1750093378338,0.47447961,107800.0,107790.0,0.27513]
[1750093378550,0.47447961,107800.0,107790.0,0.46995308]
[1750093378770,0.47447961,107800.0,107790.0,0.43099308]
[1750093378992,0.27967374,107800.0,107790.0,0.47495308]
[1750093379218,0.46155869,107800.0,107790.0,1.01565182]
[1750093379587,0.29822583,107800.0,107790.0,1.02492851]
[1750093379676,0.30750218,107800.0,107790.0,1.02492851]
[1750093379919,0.28530586,107800.0,107790.0,1.02492851]
[1750093380142,0.47083521,107800.0,107790.0,1.01565182]
[1750093380364,0.30750278,107800.0,107790.0,1.02492851]
[1750093380595,0.47083521,107800.0,107790.0,1.02492851]
[1750093380805,0.47083521,107800.0,107790.0,1.01565199]
[1750093380806,0.49303153,107800.0,107790.0,1.01565199]
[1750093381020,0.49303153,107800.0,107790.0,1.02492877]
[1750093381281,0.50230796,107800.0,107790.0,1.01565199]
[1750093381511,0.55651809,107800.0,107790.0,0.49350707]
[1750093381952,0.48375518,107800.0,107790.0,0.50278376]
[1750093382188,0.47083521,107800.0,107790.0,0.50278376]
[1750093382397,0.47083521,107800.0,107790.0,0.49350707]
[1750093382917,0.31059929,107800.0,107790.0,0.48423012]
[1750093383138,0.31059929,107800.0,107790.0,0.44527012]
[1750093383393,0.31059929,107800.0,107790.0,0.48423012]
[1750093383592,0.31059929,107800.0,107790.0,0.48223012]
[1750093383815,0.30959929,107800.0,107790.0,0.48750698]
[1750093384062,0.31159929,107800.0,107790.0,0.49750698]
[1750093384531,0.32087572,107800.0,107790.0,0.49750698]
[1750093384760,0.32087572,107800.0,107790.0,0.24517]
[1750093384999,0.30232329,107800.0,107790.0,0.48823046]
[1750093385463,0.30232329,107800.0,107790.0,0.49750758]
[1750093385973,0.30232329,107800.0,107790.0,0.51606157]
[1750093386188,0.30232329,107800.0,107790.0,0.50678428]
[1750093386451,0.30232329,107800.0,107790.0,0.49750733]
[1750093386676,0.30232329,107800.0,107790.0,0.50678411]
[1750093387510,0.30232329,107800.0,107790.0,0.50678428]
[1750093388000,0.30232329,107800.0,107790.0,0.51606114]
[1750093388228,0.30232329,107800.0,107790.0,0.50678393]
[1750093388704,0.1167942,107800.0,107790.0,0.51606062]
[1750093388937,0.30232295,107800.0,107790.0,0.51606062]
[1750093389183,0.30232295,107800.0,107790.0,0.50678393]
[1750093389701,0.29304686,107800.0,107790.0,0.48823012]
[1750093389940,0.28377051,107800.0,107790.0,0.47895325]
[1750093390156,0.28377051,107800.0,107790.0,0.48823046]
[1750093390595,0.28377051,107800.0,107790.0,0.47895325]
[1750093390825,0.37991973,107800.0,107790.0,0.24017]
[1750093391061,0.90206465,107800.0,107790.0,0.23728]
[1750093391274,0.82813326,107800.0,107790.0,0.2762]
[1750093391487,1.16813326,107800.0,107790.0,0.2762]
[1750093391707,6.22300326,107800.0,107790.0,0.261]
[1750093392161,6.21813326,107800.0,107790.0,0.01]
[1750093392399,6.90165268,107800.0,107790.0,0.24496]
[1750093392604,6.41637316,107800.0,107790.0,0.24496]
[1750093392809,6.44425316,107800.0,107790.0,0.24496]
[1750093393226,6.44325316,107800.0,107790.0,0.24096]
[1750093393845,6.44225316,107800.0,107790.0,0.23496]
[1750093394276,6.42585316,107800.0,107790.0,0.23496]
[1750093395373,6.57677316,107800.0,107790.0,0.23496]
[1750093395719,6.31340394,107800.0,107790.0,0.23496]
[1750093395986,6.46432394,107800.0,107790.0,0.23496]
[1750093397497,6.48092394,107800.0,107790.0,0.23496]
[1750093397930,6.97422394,107800.0,107790.0,0.23496]
[1750093398147,6.99002394,107800.0,107790.0,0.23496]
[1750093398361,7.08617316,107800.0,107790.0,0.23496]
[1750093398986,7.60831808,107800.0,107790.0,0.23496]
[1750093399464,7.08617316,107800.0,107790.0,0.23496]
[1750093401151,7.60831808,107800.0,107790.0,0.23496]
[1750093401364,7.61482463,107800.0,107790.0,0.23496]
[1750093401795,7.09386935,107800.0,107790.0,0.23496]
[1750093401973,7.14942357,107800.0,107790.0,0.23496]
[1750093402512,7.09386904,107800.0,107790.0,0.23496]
[1750093404168,7.09386499,107800.0,107790.0,0.23496]
[1750093405734,6.57172007,107800.0,107790.0,0.23496]
[1750093406146,6.53932007,107800.0,107790.0,0.23496]
[1750093406558,6.40470007,107800.0,107790.0,0.23496]
[1750093406762,6.58335978,107800.0,107790.0,0.23496]
[1750093406976,6.55562007,107800.0,107790.0,0.23496]
[1750093407529,6.58335886,107800.0,107790.0,0.23496]
[1750093407740,6.55562007,107800.0,107790.0,0.23496]
[1750093408555,6.58335694,107800.0,107790.0,0.23496]
[1750093409411,6.57685644,107800.0,107790.0,0.23496]
[1750093409830,6.42593663,107800.0,107790.0,0.23496]
[1750093410114,6.48070741,107800.0,107790.0,0.23496]
[1750093410331,6.39388543,107800.0,107790.0,0.23496]
[1750093410550,6.24296543,107800.0,107790.0,0.23496]
[1750093410736,5.85544051,107800.0,107790.0,0.23496]
[1750093410984,6.43676015,107800.0,107790.0,0.23496]
[1750093411193,6.57604921,107800.0,107790.0,0.23496]
[1750093411435,6.56360937,107800.0,107790.0,0.23496]
[1750093411879,6.57010884,107800.0,107790.0,0.23496]
[1750093413040,6.29233962,107800.0,107790.0,0.23496]
[1750093413253,6.46450459,107800.0,107790.0,0.23496]
[1750093413931,5.78656967,107800.0,107790.0,0.26696]
[1750093414154,6.42265039,107800.0,107790.0,0.27162]
[1750093414800,6.42265039,107800.0,107790.0,0.26696]
[1750093415024,6.37256961,107800.0,107790.0,0.19604]
[1750093415255,6.56047381,107800.0,107790.0,0.23496]
[1750093415468,6.51053885,107800.0,107790.0,0.23496]
[1750093415697,6.48005842,107800.0,107790.0,0.23496]
[1750093415919,6.48005844,107800.0,107790.0,0.23496]
[1750093416348,6.5605342,107800.0,107790.0,0.23496]
[1750093417483,6.47355465,107800.0,107790.0,0.19604]
[1750093417775,6.49626197,107800.0,107790.0,0.23496]
[1750093417995,6.48006197,107800.0,107790.0,0.23496]
[1750093418213,6.53932299,107800.0,107790.0,0.23496]
[1750093418422,6.56710486,107800.0,107790.0,0.23496]
[1750093418626,6.53932299,107800.0,107790.0,0.23496]
[1750093419064,6.56711336,107800.0,107790.0,0.23496]
[1750093419281,6.47096414,107800.0,107790.0,0.23496]
[1750093419516,6.44317377,107800.0,107790.0,0.23496]
[1750093419730,6.44317377,107800.0,107790.0,0.26716]
[1750093420560,6.49873098,107800.0,107790.0,0.26716]
[1750093420762,6.5948802,107800.0,107790.0,0.26716]
[1750093420977,6.28385996,107800.0,107790.0,0.26716]
[1750093421193,6.37922275,107800.0,107790.0,0.26716]
[1750093421848,6.45714064,107800.0,107790.0,0.26716]
[1750093422050,6.4942444,107800.0,107790.0,0.26716]
[1750093422289,6.59039362,107800.0,107790.0,0.26716]
[1750093422509,6.59039362,107800.0,107790.0,0.27182]
[1750093422510,5.42552384,107800.0,107790.0,0.27182]
[1750093422727,0.51065925,107800.0,107790.0,0.98878817]
[1750093422941,0.79495276,107800.0,107790.0,0.97951088]
[1750093423155,0.80422919,107800.0,107790.0,0.47592029]
[1750093423382,0.81350536,107800.0,107790.0,0.47592029]
[1750093423608,0.81350536,107800.0,107790.0,1.00734207]
[1750093423818,0.81350536,107800.0,107790.0,0.96842207]
[1750093424047,0.66258536,107800.0,107790.0,1.00934207]
[1750093424274,0.81350536,107800.0,107790.0,0.47792029]
[1750093424474,0.60571385,107800.0,107790.0,0.48919724]
[1750093424762,0.80979529,107800.0,107790.0,0.48919724]
[1750093425178,0.80979521,107800.0,107790.0,0.49847393]
[1750093425415,0.62426646,107800.0,107790.0,0.50347393]
[1750093425627,0.81907164,107800.0,107790.0,0.5034741]
[1750093425832,0.80979521,107800.0,107790.0,0.51275088]
[1750093426039,0.80979572,107800.0,107790.0,0.51275088]
[1750093426237,0.80979572,107800.0,107790.0,1.0348958]
[1750093426450,0.80979572,107800.0,107790.0,0.49419724]
[1750093426658,0.80051955,107800.0,107790.0,0.48492046]
[1750093428455,0.80051955,107800.0,107790.0,0.51275148]
[1750093428654,0.80051955,107800.0,107790.0,0.50347462]
[1750093431102,0.80051955,107800.0,107790.0,0.51275148]
[1750093431312,0.80051955,107800.0,107790.0,0.51275097]
[1750093431456,0.44551759,107800.0,107790.0,1.03489537]
[1750093431658,0.60567342,107800.0,107790.0,1.03489537]
[1750093431858,0.5963975,107800.0,107790.0,1.03489537]
[1750093432108,0.60567342,107800.0,107790.0,1.03489537]
[1750093432705,0.61494951,107800.0,107790.0,1.03489537]
[1750093432918,0.58712176,107800.0,107790.0,1.03489537]
[1750093433095,0.60567334,107800.0,107790.0,1.03489537]
[1750093433447,0.59639742,107800.0,107790.0,1.03489537]
[1750093433655,0.60567325,107800.0,107790.0,1.03489537]
[1750093434056,0.61494934,107800.0,107790.0,1.03489537]
[1750093434453,0.6242256,107800.0,107790.0,1.03489537]
[1750093434658,0.6242256,107800.0,107790.0,0.9774219]
[1750093434659,0.81903078,107800.0,107790.0,0.9774219]
[1750093434864,0.80975512,107800.0,107790.0,1.0163419]
[1750093435157,0.80975512,107800.0,107790.0,0.96814504]
[1750093435358,0.80975512,107800.0,107790.0,1.00706504]
[1750093435590,0.80975512,107800.0,107790.0,1.01634199]
[1750093435795,0.80975512,107800.0,107790.0,1.02561885]
[1750093436297,0.80975512,107800.0,107790.0,0.97742199]
[1750093436505,0.80975512,107800.0,107790.0,1.01634199]
[1750093437412,0.80047929,107800.0,107790.0,1.01634199]
[1750093438456,0.11479411,107800.0,107790.0,1.03489546]
[1750093438664,0.27494994,107800.0,107790.0,1.03489546]
[1750093439090,0.46975504,107800.0,107790.0,1.03489546]
[1750093439502,0.28422629,107800.0,107790.0,1.03489546]
[1750093440196,0.10551759,107800.0,107790.0,1.03489546]
[1750093440375,0.09624176,107800.0,107790.0,1.03489546]
[1750093440628,0.10551759,107800.0,107790.0,1.03489546]
[1750093441030,0.27494985,107800.0,107790.0,0.51275054]
[1750093441300,0.27494976,107800.0,107790.0,1.03489546]
[1750093442185,0.46975477,107800.0,107790.0,0.96814504]
[1750093442395,0.4790312,107800.0,107790.0,1.0163419]
[1750093442600,0.29350245,107800.0,107790.0,1.02561859]
[1750093442799,0.28422602,107800.0,107790.0,1.02561859]
[1750093443465,0.27494976,107800.0,107790.0,1.02561859]
[1750093443672,0.26567359,107800.0,107790.0,1.02561859]
[1750093444089,0.27494985,107800.0,107790.0,1.02561859]
[1750093444535,0.27490985,107800.0,107790.0,1.02561859]
[1750093445715,0.2841862,107800.0,107790.0,1.02561859]
[1750093446097,0.47899138,107800.0,107790.0,1.02557859]
[1750093446316,0.46971555,107800.0,107790.0,0.49415698]
[1750093446522,0.46043955,107800.0,107790.0,0.47060325]
[1750093446743,0.45116329,107800.0,107790.0,0.49415741]
[1750093447079,0.27490994,107800.0,107790.0,1.03485597]
[1750093448742,0.09624176,107800.0,107790.0,1.03485597]
[1750093448971,0.24708176,107800.0,107790.0,1.03485597]
[1750093449321,0.25635742,107800.0,107790.0,1.03485597]
[1750093449953,0.24708176,107800.0,107790.0,1.03485597]
[1750093450172,0.09624176,107800.0,107790.0,1.03485597]
[1750093450399,0.85599669,107820.0,107810.0,0.21333723]
[1750093450640,0.10598817,107820.0,107810.0,0.77490215]
[1750093450858,0.09671406,107820.0,107810.0,0.77490215]
[1750093451065,0.25682817,107820.0,107810.0,0.77490215]
[1750093451264,0.2661022,107820.0,107810.0,0.77490215]
[1750093451705,0.28665102,107820.0,107810.0,0.77490215]
[1750093451944,0.28665102,107820.0,107810.0,0.25675723]
[1750093452155,0.27737648,107820.0,107810.0,0.25675723]
[1750093452385,0.28465102,107820.0,107810.0,0.25675723]
[1750093452591,0.28465102,107820.0,107810.0,0.78190215]
[1750093452798,0.28465102,107820.0,107810.0,0.25975723]
[1750093453217,0.29392565,107820.0,107810.0,0.25975723]
[1750093454606,0.14308565,107820.0,107810.0,0.25975723]
[1750093454827,0.28465102,107820.0,107810.0,0.25975723]
[1750093455042,0.28465093,107820.0,107810.0,0.25975723]
[1750093455258,0.27537648,107820.0,107810.0,0.25975723]
[1750093455467,0.12453648,107820.0,107810.0,0.25975723]
[1750093455884,0.28465102,107820.0,107810.0,0.78190215]
[1750093456151,0.28465093,107820.0,107810.0,0.78190215]
[1750093456373,0.28465085,107820.0,107810.0,0.78190215]
[1750093456597,0.1152622,107820.0,107810.0,0.78190215]
[1750093456810,0.2661022,107820.0,107810.0,0.78190215]
[1750093457263,0.27537657,107820.0,107810.0,0.78190215]
[1750093457718,0.28465111,107820.0,107810.0,0.78190215]
[1750093457934,0.28465111,107820.0,107810.0,0.25975723]
[1750093458801,0.47942008,107820.0,107810.0,0.25975723]
[1750093459022,0.47942085,107820.0,107810.0,0.2597574]
[1750093459237,0.47942085,107820.0,107810.0,0.26903246]
[1750093459456,0.47942085,107820.0,107810.0,0.27830743]
[1750093459858,0.27533708,107820.0,107810.0,0.27830743]
[1750093459996,0.27533717,107820.0,107810.0,0.27830743]
[1750093460211,0.1152622,107820.0,107810.0,0.80045235]
[1750093460411,0.28461111,107820.0,107810.0,0.80045235]
[1750093460831,0.28461111,107820.0,107810.0,0.27830743]
[1750093461036,0.27533657,107820.0,107810.0,0.27830743]
[1750093461287,0.09671406,107820.0,107810.0,0.95125235]
[1750093461468,0.0004723,107820.0,107810.0,0.95125235]
[1750093470245,0.0004723,107820.0,107810.0,1.48793812]
[1750093470883,0.0004723,107820.0,107810.0,1.48393812]
[1750093471148,0.0004723,107820.0,107810.0,1.48593812]
[1750093471352,0.0004723,107820.0,107810.0,1.48993812]
[1750093471764,0.0004723,107820.0,107810.0,1.82993812]
[1750093471973,0.0004723,107820.0,107810.0,1.92617988]
[1750093473269,0.0004723,107820.0,107810.0,0.88189004]
[1750093473472,0.0004723,107820.0,107810.0,1.92617988]
[1750093474641,0.0004723,107820.0,107810.0,1.96557988]
[1750093475720,0.0004723,107820.0,107810.0,1.44343496]
[1750093476155,0.0004723,107820.0,107810.0,1.96557988]
[1750093480511,0.0004723,107820.0,107810.0,1.96157988]
[1750093480938,0.0014723,107820.0,107810.0,2.15853988]
[1750093481176,0.51549132,107860.0,107850.0,0.24935811]
[1750093481445,0.11478319,107860.0,107850.0,0.81535303]
[1750093481664,0.13332513,107860.0,107850.0,0.81535303]
[1750093482729,0.10751243,107860.0,107850.0,0.81535303]
[1750093482956,0.11678327,107860.0,107850.0,0.81535303]
[1750093483172,0.10751243,107860.0,107850.0,0.81535303]
[1750093483388,0.11678319,107860.0,107850.0,0.81535303]
[1750093483815,0.11778319,107860.0,107850.0,0.81535303]
[1750093484014,0.1270542,107860.0,107850.0,0.81535303]
[1750093484239,0.11778319,107860.0,107850.0,0.81535303]
[1750093484448,0.13632513,107860.0,107850.0,0.29320811]
[1750093484664,0.13632513,107860.0,107850.0,0.96210303]
[1750093484882,0.33102195,107860.0,107850.0,0.39958658]
[1750093485086,0.34301128,107860.0,107850.0,0.40877828]
[1750093485328,0.34301128,107860.0,107850.0,0.4180499]
[1750093486187,0.34301128,107860.0,107850.0,0.20898666]
[1750093486404,0.34301128,107860.0,107850.0,0.25745836]
[1750093486651,0.34301128,107860.0,107850.0,0.26672998]
[1750093486873,0.14108573,107860.0,107850.0,0.27600151]
[1750093487287,0.13181446,107860.0,107850.0,0.27600151]
[1750093487651,0.31724001,107860.0,107850.0,0.27600151]
[1750093487859,0.32651128,107860.0,107850.0,0.27600151]
[1750093488523,0.32651128,107860.0,107850.0,0.26672998]
[1750093488978,0.13181446,107860.0,107850.0,0.27600151]
[1750093490134,0.12254293,107860.0,107850.0,0.47196151]
[1750093490357,0.11778293,107860.0,107850.0,0.99410643]
[1750093490573,0.11778293,107860.0,107850.0,1.02580643]
[1750093491035,0.12705369,107860.0,107850.0,1.02580643]
[1750093491462,0.11778293,107860.0,107850.0,1.02580643]
[1750093491657,0.10851226,107860.0,107850.0,1.02580643]
[1750093491881,0.11778293,107860.0,107850.0,1.03045643]
[1750093492092,0.1363247,107860.0,107850.0,0.99410643]
[1750093492924,0.1455958,107860.0,107850.0,0.99410643]
[1750093493134,0.1363247,107860.0,107850.0,0.47196151]
[1750093493987,0.12705369,107860.0,107850.0,0.47196151]
[1750093494746,0.09924176,107860.0,107850.0,0.99410643]
[1750093494976,0.11778284,107860.0,107850.0,1.02854643]
[1750093495196,0.09924176,107860.0,107850.0,1.02854643]
[1750093495397,0.003,107860.0,107850.0,1.55069135]
[1750093495603,0.003,107860.0,107850.0,1.02854643]
[1750093497735,0.003,107860.0,107850.0,1.55069135]
[1750093497945,0.003,107860.0,107850.0,1.02854643]
[1750093498390,0.003,107860.0,107850.0,1.55069135]
[1750093499532,0.001,107860.0,107850.0,1.55069135]
[1750093499997,0.001,107860.0,107850.0,1.55169135]
[1750093500227,0.001,107860.0,107850.0,1.55069135]
[1750093500457,0.02780677,107880.0,107870.0,0.25458857]
[1750093500724,0.90711545,107890.0,107880.0,0.2171988]
[1750093500725,0.8740337,107890.0,107880.0,0.2171988]
[1750093500945,0.11491959,107890.0,107880.0,0.81024372]
[1750093501167,0.1056515,107890.0,107880.0,0.81024372]
[1750093501602,0.1056515,107890.0,107880.0,0.81491372]
[1750093501869,0.09638349,107890.0,107880.0,0.96168372]
[1750093502092,0.09638349,107890.0,107880.0,0.96635372]
[1750093502295,0.09938349,107890.0,107880.0,0.96635372]
[1750093502724,0.10865141,107890.0,107880.0,0.96635372]
[1750093503160,0.11791942,107890.0,107880.0,0.96635372]
[1750093503396,0.10238349,107890.0,107880.0,0.96635372]
[1750093503613,0.11165141,107890.0,107880.0,0.96635372]
[1750093503844,0.00614173,107890.0,107880.0,0.96635372]
[1750093504083,0.00314173,107890.0,107880.0,0.96635372]
[1750093504307,0.00014173,107890.0,107880.0,0.96635372]
[1750093504534,0.00014173,107890.0,107880.0,0.77671372]
[1750093504746,0.00014173,107890.0,107880.0,0.96735372]
[1750093505400,0.00114173,107890.0,107880.0,1.48949864]
[1750093505612,0.00114173,107890.0,107880.0,1.52050074]
[1750093505828,0.00014173,107890.0,107880.0,1.52050074]
[1750093511147,0.00014173,107890.0,107880.0,0.2855709]
[1750093511352,0.00014173,107890.0,107880.0,1.17777457]
[1750093511563,0.00014173,107890.0,107880.0,1.69991949]
[1750093512405,0.00014173,107890.0,107880.0,1.50927949]
[1750093512614,0.00014173,107890.0,107880.0,1.69987949]
[1750093513921,0.00014173,107890.0,107880.0,1.8119054]
[1750093514592,0.00014173,107890.0,107880.0,1.6213054]
[1750093515058,0.00014173,107890.0,107880.0,1.8119054]
[1750093515274,0.00014173,107890.0,107880.0,1.50927949]
[1750093515498,0.00014173,107890.0,107880.0,1.17773457]
[1750093515715,0.00014173,107890.0,107880.0,1.69987949]
[1750093516407,0.00014173,107890.0,107880.0,1.71579242]
[1750093518837,0.00014173,107890.0,107880.0,0.67150258]
[1750093519054,0.00014173,107890.0,107880.0,1.71583242]
[1750093520099,0.00014173,107890.0,107880.0,1.81207418]
[1750093522373,0.00014173,107890.0,107880.0,1.62143418]
[1750093522589,0.00014173,107890.0,107880.0,1.81203418]
[1750093524004,0.00014173,107890.0,107880.0,2.16143418]
[1750093524239,0.00014173,107890.0,107880.0,2.35199418]
[1750093524969,0.00014173,107890.0,107880.0,2.35099418]
[1750093525198,0.00014173,107890.0,107880.0,2.35799418]
[1750093526851,0.00014173,107890.0,107880.0,2.37799418]
[1750093527812,0.00014173,107890.0,107880.0,3.1501391]
[1750093528906,0.00014173,107890.0,107880.0,3.4440391]
[1750093530016,0.00014173,107890.0,107880.0,2.92189418]
[1750093533850,0.00014173,107890.0,107880.0,3.4440391]
[1750093534285,0.00014173,107890.0,107880.0,2.92189418]
[1750093534514,0.00014173,107890.0,107880.0,3.2534791]
[1750093534739,0.00014173,107890.0,107880.0,2.92169418]
[1750093535432,0.00014173,107890.0,107880.0,2.73133418]
[1750093535666,0.00014173,107890.0,107880.0,2.92169418]
[1750093535904,0.00014173,107890.0,107880.0,2.77057418]
[1750093536128,0.00014173,107890.0,107880.0,2.92173418]
[1750093536585,0.00014173,107890.0,107880.0,2.73133418]
[1750093536815,0.00014173,107890.0,107880.0,2.48545418]
[1750093537037,0.00014173,107890.0,107880.0,0.76905173]
[1750093537256,0.00469173,107890.0,107880.0,1.76648372]
[1750093537703,0.00469173,107890.0,107880.0,1.79700856]
[1750093538373,0.00014173,107890.0,107880.0,1.79700856]
[1750093539556,0.00014173,107890.0,107880.0,2.31915348]
[1750093540834,0.00014173,107890.0,107880.0,2.02525348]
[1750093541475,0.00014173,107890.0,107880.0,2.03009348]
[1750093541663,0.00014173,107890.0,107880.0,2.06269348]
[1750093542280,0.00014173,107890.0,107880.0,2.04619348]
[1750093542500,0.00014173,107890.0,107880.0,2.03009348]
[1750093542712,0.00014173,107890.0,107880.0,2.02525348]
[1750093543041,0.02009173,107890.0,107880.0,0.4199988]
[1750093543260,0.06399627,107890.0,107880.0,0.4590788]
[1750093543469,0.25863878,107890.0,107880.0,0.45507897]
[1750093543675,0.33634444,107890.0,107880.0,0.24592]
[1750093543907,0.93368793,107890.0,107880.0,0.24192]
[1750093544124,6.02210386,107890.0,107880.0,0.19984]
[1750093544335,6.45925308,107890.0,107880.0,0.19984]
[1750093544554,6.4869635,107890.0,107880.0,0.23992]
[1750093544758,6.50975089,107890.0,107880.0,0.18852]
[1750093544975,6.51625375,107890.0,107880.0,0.18952]
[1750093545189,7.00418539,107890.0,107880.0,0.18952]
[1750093545404,7.00947563,107890.0,107880.0,0.18952]
[1750093545624,7.05291298,107890.0,107880.0,0.18952]
[1750093546049,7.0528798,107890.0,107880.0,0.18952]
[1750093546244,7.01893257,107890.0,107880.0,0.18752]
[1750093546450,7.02493257,107890.0,107880.0,0.18752]
[1750093546852,6.94673415,107890.0,107880.0,0.18752]
[1750093547068,6.43906798,107890.0,107880.0,0.18752]
[1750093547931,6.43906616,107890.0,107880.0,0.18752]
[1750093548146,6.4325765,107890.0,107880.0,0.18752]
[1750093548857,6.5840565,107890.0,107880.0,0.18752]
[1750093549501,6.55635988,107890.0,107880.0,0.18752]
[1750093550125,6.53905411,107890.0,107880.0,0.18752]
[1750093550968,7.1853744,107890.0,107880.0,0.18752]
[1750093551172,7.19177426,107890.0,107880.0,0.18752]
[1750093551428,6.51775059,107890.0,107880.0,0.18752]
[1750093551650,6.66267073,107890.0,107880.0,0.18752]
[1750093552282,6.63497411,107890.0,107880.0,0.18752]
[1750093552492,6.29142489,107890.0,107880.0,0.18752]
[1750093552708,5.75426037,107890.0,107880.0,0.18752]
[1750093552923,5.90566037,107890.0,107880.0,0.18752]
[1750093553134,6.42828404,107890.0,107880.0,0.18752]
[1750093553334,6.27688404,107890.0,107880.0,0.18752]
[1750093553557,6.51843326,107890.0,107880.0,0.18752]
[1750093553757,6.50443326,107890.0,107880.0,0.18752]
[1750093553963,6.35703326,107890.0,107880.0,0.18752]
[1750093554212,5.71606835,107890.0,107880.0,0.18752]
[1750093554428,5.87054835,107890.0,107880.0,0.18752]
[1750093554640,6.39317202,107890.0,107880.0,0.18752]
[1750093554858,5.90169202,107890.0,107880.0,0.18752]
[1750093555103,6.05317202,107890.0,107880.0,0.18752]
[1750093555323,6.14932124,107890.0,107880.0,0.18752]
[1750093555737,6.48932124,107890.0,107880.0,0.18752]
[1750093556563,6.48932124,107890.0,107880.0,0.14844]
[1750093556816,6.48932124,107890.0,107880.0,0.18756]
[1750093558411,6.33784124,107890.0,107880.0,0.18756]
[1750093558622,6.48932124,107890.0,107880.0,0.18756]
[1750093559501,6.54986209,107890.0,107880.0,0.14844]
[1750093559719,6.57191033,107890.0,107880.0,0.14844]
[1750093559927,6.57191033,107890.0,107880.0,0.18756]
[1750093560315,7.094534,107890.0,107880.0,0.14844]
[1750093560538,7.12223062,107890.0,107880.0,0.18756]
[1750093560745,7.12223062,107890.0,107880.0,0.14844]
[1750093561158,7.12223062,107890.0,107880.0,0.18756]
[1750093561357,6.59960695,107890.0,107880.0,0.18756]
[1750093561567,7.12223062,107890.0,107880.0,0.14844]
[1750093561774,7.20917785,107890.0,107880.0,0.18756]
[1750093562185,7.18148123,107890.0,107880.0,0.14844]
[1750093562397,5.5988464,107850.0,107840.0,0.07519857]
[1750093562606,6.46542105,107850.0,107840.0,0.31023857]
[1750093563238,6.49328805,107850.0,107840.0,0.06565287]
[1750093564046,6.49428805,107850.0,107840.0,0.02653287]
[1750093564266,0.20402423,107830.0,107820.0,0.11099857]
[1750093564482,0.30512599,107830.0,107820.0,0.22776717]
[1750093564695,0.64512599,107830.0,107820.0,0.19596717]
[1750093564905,6.36930966,107830.0,107820.0,0.23508717]
[1750093565113,6.38419031,107830.0,107820.0,0.23508717]
[1750093565332,6.48033953,107830.0,107820.0,0.23508717]
[1750093565535,6.48033953,107830.0,107820.0,0.24008717]
[1750093565737,5.95771586,107830.0,107820.0,0.24008717]
[1750093566162,5.95771586,107830.0,107820.0,0.24208717]
[1750093566364,5.95771586,107830.0,107820.0,0.23708717]